fUST/lending_fUST_20250129
["ID","MTS","AMOUNT","RATE_DAILY","PERIOD"]
[350785906,1738128640943,-151.0,0.00016453,2]
[350785908,1738128640953,-151.0,0.00016453,2]
[350785909,1738128640962,-151.0,0.00016453,2]
[350785911,1738128640972,-151.0,0.00016453,2]
[350785913,1738128640982,-151.0,0.00016453,2]
[350785915,1738128640991,-151.0,0.00016453,2]
[350785918,1738128641001,-244.05503,0.00016453,2]
[350785920,1738128641011,-244.05503,0.00016453,2]
[350785922,1738128641021,-415.24173051,0.00016453,2]
[350785923,1738128641031,-244.05503,0.00016453,2]
[350785925,1738128641042,-244.05503,0.00016453,2]
[350785928,1738128641051,-244.05503,0.00016453,2]
[350785929,1738128641061,-244.05503,0.00016453,2]
[350785931,1738128641071,-244.05503,0.00016453,2]
[350785933,1738128641081,-244.05503,0.00016453,2]
[350785936,1738128641091,-151.0,0.00016453,2]
[350785937,1738128641101,-151.0,0.00016453,2]
[350785939,1738128641111,-151.0,0.00016454,2]
[350785942,1738128641121,-151.0,0.00016454,2]
[350785944,1738128641131,-500.0,0.00016454,2]
[350785945,1738128641141,-151.0,0.00016454,2]
[350785947,1738128641150,-151.0,0.00016454,2]
[350785950,1738128641160,-151.0,0.00016454,2]
[350785952,1738128641170,-500.0,0.00016454,2]
[350785953,1738128641181,-500.0,0.00016454,2]
[350785955,1738128641190,-460.24324787,0.00016454,2]
[350785958,1738128641200,-500.0,0.00016454,2]
[350785960,1738128641210,-500.0,0.00016454,2]
[350785961,1738128641220,-154.3508,0.00016454,2]
[350785964,1738128641230,-500.0,0.00016454,2]
[350785966,1738128641239,-321.766729,0.00016454,2]
[350785967,1738128641249,-321.766729,0.00016454,2]
[350785971,1738128641272,-500.0,0.00016454,2]
[350785973,1738128641282,-321.766729,0.00016454,2]
[350785975,1738128641293,-321.766729,0.00016454,2]
[350785977,1738128641303,-500.0,0.00016454,2]
[350785979,1738128641313,-500.0,0.00016454,2]
[350785981,1738128641324,-500.0,0.00016454,2]
[350785984,1738128641334,-181.696667,0.00016454,2]
[350785986,1738128641343,-181.696667,0.00016454,2]
[350785988,1738128641355,-181.696667,0.00016454,2]
[350785990,1738128641365,-181.696667,0.00016454,2]
[350785992,1738128641376,-500.0,0.00016454,2]
[350785994,1738128641387,-151.0,0.00016454,2]
[350785996,1738128641397,-234.612516,0.00016454,2]
[350785998,1738128641406,-184.038694,0.00016454,2]
[350786000,1738128641416,-184.038694,0.00016454,2]
[350786002,1738128641427,-151.0,0.00016454,2]
[350786004,1738128641436,-151.0,0.00016454,2]
[350786006,1738128641447,-151.0,0.00016454,2]
[350786008,1738128641457,-151.0,0.00016454,2]
[350786010,1738128641467,-151.0,0.00016454,2]
[350786012,1738128641478,-151.0,0.00016454,2]
[350786015,1738128641488,-315.928097,0.00016454,2]
[350786017,1738128641498,-315.928097,0.00016454,2]
[350786019,1738128641508,-151.0,0.00016454,2]
[350786021,1738128641519,-487.447635,0.00016454,2]
[350786023,1738128641529,-500.0,0.00016454,2]
[350786025,1738128641539,-500.0,0.00016454,2]
[350786027,1738128641548,-487.447635,0.00016454,2]
[350786029,1738128641558,-297.034194,0.00016454,2]
[350786031,1738128641568,-151.0,0.00016454,2]
[350786033,1738128641579,-151.0,0.00016454,2]
[350786035,1738128641589,-151.0,0.00016454,2]
[350786037,1738128641599,-560.817626,0.00016454,2]
[350786039,1738128641609,-560.817626,0.00016454,2]
[350786041,1738128641618,-151.0,0.00016454,2]
[350786043,1738128641628,-151.0,0.00016454,2]
[350786046,1738128641645,-161.089592,0.00016454,2]
[350786048,1738128641655,-244.05503,0.00016454,2]
[350786050,1738128641665,-244.05503,0.00016454,2]
[350786052,1738128641676,-500.0,0.00016455,2]
[350786054,1738128641686,-152.514757,0.00016455,2]
[350786056,1738128641696,-278.985377,0.00016455,2]
[350786058,1738128641706,-151.0,0.00016455,2]
[350786060,1738128641717,-151.0,0.00016455,2]
[350786062,1738128641726,-151.0,0.00016455,2]
[350786064,1738128641737,-151.0,0.00016455,2]
[350786066,1738128641747,-151.0,0.00016455,2]
[350786069,1738128641757,-321.766729,0.00016455,2]
[350786071,1738128641767,-321.766729,0.00016455,2]
[350786073,1738128641777,-181.696667,0.00016455,2]
[350786075,1738128641787,-181.696667,0.00016455,2]
[350786077,1738128641796,-184.038694,0.00016455,2]
[350786079,1738128641807,-184.038694,0.00016455,2]
[350786081,1738128641817,-151.0,0.00016455,2]
[350786083,1738128641827,-151.0,0.00016455,2]
[350786085,1738128641837,-151.0,0.00016455,2]
[350786087,1738128641848,-151.0,0.00016455,2]
[350786089,1738128641860,-151.0,0.00016455,2]
[350786091,1738128641871,-223.081584,0.00016455,2]
[350786093,1738128641880,-315.928097,0.00016455,2]
[350786095,1738128641891,-315.928097,0.00016455,2]
[350786097,1738128641901,-151.0,0.00016455,2]
[350786099,1738128641911,-487.447635,0.00016455,2]
[350786101,1738128641921,-487.447635,0.00016455,2]
[350786103,1738128641932,-560.817626,0.00016455,2]
[350786105,1738128642153,-560.817626,0.00016455,2]
[350786107,1738128642163,-151.0,0.00016455,2]
[350786109,1738128642172,-151.0,0.00016455,2]
[350786111,1738128642182,-150.0,0.000165,2]
[350786114,1738128642192,-500.0,0.00016588,2]
[350786115,1738128642202,-1051.47,0.00016588,2]
[350786118,1738128642212,-500.0,0.00016588,2]
[350786120,1738128642221,-578.48,0.00016588,2]
[350786122,1738128642231,-1260.16,0.00016588,2]
[350786124,1738128642243,-500.0,0.00016588,2]
[350786126,1738128642253,-410.47077052,0.00016588,2]
[350786128,1738128642263,-500.0,0.00016589,2]
[350786130,1738128642272,-3321.61,0.00016589,2]
[350786132,1738128642282,-1384.22,0.00016589,2]
[350786134,1738128642292,-506.55152694,0.00016589,2]
[350786136,1738128642301,-151.0,0.00016589,2]
[350786138,1738128642315,-471.06,0.00016589,2]
[350786141,1738128642325,-1031.53,0.00016589,2]
[350786143,1738128642334,-500.0,0.00016589,2]
[350786145,1738128642344,-500.0,0.00016589,2]
[350786147,1738128642353,-315.928097,0.00016589,2]
[350786149,1738128642362,-315.928097,0.00016589,2]
[350786151,1738128642372,-151.0,0.00016589,2]
[350786153,1738128642382,-500.0,0.00016589,2]
[350786155,1738128642392,-790.64,0.00016589,2]
[350786157,1738128642401,-500.0,0.00016589,2]
[350786159,1738128642411,-801.9,0.00016589,2]
[350786161,1738128642420,-1453.76,0.00016589,2]
[350786163,1738128642430,-487.447635,0.00016589,2]
[350786165,1738128642440,-487.447635,0.00016589,2]
[350786167,1738128642450,-500.0,0.00016589,2]
[350786169,1738128642460,-1322.58,0.00016589,2]
[350786171,1738128642471,-151.0,0.00016589,2]
[350786174,1738128642481,-645.2,0.00016589,2]
[350786176,1738128642490,-294.032038,0.00016589,2]
[350786178,1738128642500,-530.73,0.00016589,2]
[350786180,1738128642509,-1445.07,0.00016589,2]
[350786182,1738128642519,-151.0,0.00016589,2]
[350786184,1738128642530,-500.0,0.00016589,2]
[350786186,1738128642539,-500.0,0.00016589,2]
[350786188,1738128642549,-500.0,0.00016589,2]
[350786190,1738128642559,-560.817626,0.00016589,2]
[350786192,1738128642569,-560.817626,0.00016589,2]
[350786194,1738128642578,-151.0,0.00016589,2]
[350786196,1738128642588,-151.0,0.00016589,2]
[350786198,1738128642598,-1662.89,0.00016589,2]
[350786200,1738128642607,-500.0,0.00016589,2]
[350786202,1738128642617,-500.0,0.00016589,2]
[350786204,1738128642627,-244.05503,0.00016589,2]
[350786206,1738128642636,-244.05503,0.00016589,2]
[350786208,1738128642646,-500.0,0.00016589,2]
[350786210,1738128642656,-506.8554691,0.0001659,2]
[350786212,1738128642671,-505.77334746,0.0001659,2]
[350786214,1738128642684,-500.0,0.0001659,2]
[350786216,1738128642693,-532.72571564,0.0001659,2]
[350786218,1738128642702,-227.30503845,0.0001659,2]
[350786220,1738128642712,-338.35796954,0.0001659,2]
[350786222,1738128642722,-151.0,0.0001659,2]
[350786224,1738128642731,-182.26280745,0.0001659,2]
[350786226,1738128642741,-164.86,0.0001659,2]
[350786228,1738128642750,-418.67908754,0.0001659,2]
[350786230,1738128642760,-500.0,0.0001659,2]
[350786232,1738128642769,-500.0,0.0001659,2]
[350786234,1738128642779,-500.0,0.0001659,2]
[350786236,1738128642788,-500.0,0.0001659,2]
[350786238,1738128642798,-500.0,0.0001659,2]
[350786240,1738128642807,-506.10219251,0.0001659,2]
[350786242,1738128642817,-500.0,0.0001659,2]
[350786244,1738128642827,-321.766729,0.0001659,2]
[350786246,1738128642836,-321.766729,0.0001659,2]
[350786248,1738128642848,-321.766729,0.0001659,2]
[350786250,1738128642860,-321.766729,0.0001659,2]
[350786252,1738128642870,-500.0,0.0001659,2]
[350786254,1738128642880,-500.0,0.0001659,2]
[350786256,1738128642891,-181.696667,0.0001659,2]
[350786258,1738128642901,-181.696667,0.0001659,2]
[350786263,1738128642911,-181.696667,0.0001659,2]
[350786264,1738128642921,-500.0,0.0001659,2]
[350786266,1738128642932,-181.696667,0.0001659,2]
[350786268,1738128642942,-407.82,0.0001659,2]
[350786270,1738128642952,-500.0,0.0001659,2]
[350786272,1738128642961,-500.0,0.0001659,2]
[350786274,1738128642972,-500.0,0.0001659,2]
[350786276,1738128642982,-500.0,0.0001659,2]
[350786278,1738128642992,-500.0,0.0001659,2]
[350786280,1738128643002,-500.0,0.0001659,2]
[350786283,1738128643015,-378.1919987,0.0001659,2]
[350786286,1738128643026,-500.0,0.0001659,2]
[350786287,1738128643035,-500.03968361,0.0001659,2]
[350786290,1738128643046,-500.0,0.0001659,2]
[350786291,1738128643056,-500.0,0.0001659,2]
[350786294,1738128643066,-517.28,0.0001659,2]
[350786296,1738128643076,-500.0,0.0001659,2]
[350786298,1738128643085,-500.0,0.0001659,2]
[350786300,1738128643095,-500.0,0.0001659,2]
[350786302,1738128643106,-184.038694,0.0001659,2]
[350786304,1738128643116,-184.038694,0.0001659,2]
[350786306,1738128643126,-184.038694,0.0001659,2]
[350786309,1738128643136,-184.038694,0.0001659,2]
[350786311,1738128643145,-184.038694,0.0001659,2]
[350786313,1738128643155,-184.038694,0.0001659,2]
[350786315,1738128643165,-184.038694,0.0001659,2]
[350786317,1738128643176,-184.038694,0.0001659,2]
[350786319,1738128643186,-584.79763282,0.0001659,2]
[350786321,1738128643195,-500.0,0.0001659,2]
[350786323,1738128643206,-500.0,0.0001659,2]
[350786325,1738128643216,-500.0,0.0001659,2]
[350786327,1738128643226,-151.0,0.0001659,2]
[350786329,1738128643235,-151.0,0.0001659,2]
[350786331,1738128643244,-151.0,0.0001659,2]
[350786333,1738128643253,-151.0,0.0001659,2]
[350786335,1738128643265,-151.0,0.0001659,2]
[350786337,1738128643274,-151.0,0.0001659,2]
[350786339,1738128643283,-151.0,0.0001659,2]
[350786341,1738128643294,-186.786682,0.0001659,2]
[350786343,1738128643304,-151.0,0.0001659,2]
[350786345,1738128643313,-702.43,0.0001659,2]
[350786348,1738128643324,-151.0,0.0001659,2]
[350786350,1738128643334,-151.0,0.0001659,2]
[350786352,1738128643343,-151.0,0.0001659,2]
[350786354,1738128643353,-151.0,0.0001659,2]
[350786356,1738128643363,-500.0,0.0001659,2]
[350786358,1738128643372,-216.644658,0.0001659,2]
[350786359,1738128643381,-500.0,0.0001659,2]
[350786362,1738128643391,-500.0,0.0001659,2]
[350786364,1738128643401,-507.88828999,0.0001659,2]
[350786366,1738128643411,-4458.44,0.0001659,2]
[350786368,1738128643420,-448.01501575,0.0001659,2]
[350786370,1738128643429,-500.0,0.0001659,2]
[350786372,1738128643439,-500.0,0.0001659,2]
[350786373,1738128643448,-13457.57,0.0001659,2]
[350786375,1738128643458,-315.928097,0.0001659,2]
[350786376,1738128643468,-315.928097,0.0001659,2]
[350786378,1738128643477,-315.928097,0.0001659,2]
[350786380,1738128643487,-668.8,0.0001659,2]
[350786382,1738128643496,-315.928097,0.0001659,2]
[350786384,1738128643505,-315.928097,0.0001659,2]
[350786386,1738128643516,-315.928097,0.0001659,2]
[350786388,1738128643526,-151.0,0.0001659,2]
[350786390,1738128643535,-151.0,0.0001659,2]
[350786392,1738128643544,-165.347969,0.0001659,2]
[350786394,1738128643555,-500.0,0.0001659,2]
[350786396,1738128643565,-500.0,0.0001659,2]
[350786398,1738128643575,-500.0,0.0001659,2]
[350786400,1738128643585,-500.0,0.0001659,2]
[350786402,1738128643594,-487.447635,0.0001659,2]
[350786404,1738128643603,-487.447635,0.0001659,2]
[350786406,1738128643612,-487.447635,0.0001659,2]
[350786408,1738128643623,-500.0,0.0001659,2]
[350786411,1738128643632,-500.0,0.0001659,2]
[350786414,1738128643641,-500.0,0.0001659,2]
[350786417,1738128643651,-487.447635,0.0001659,2]
[350786418,1738128643661,-487.447635,0.0001659,2]
[350786420,1738128643674,-487.447635,0.0001659,2]
[350786423,1738128643684,-500.0,0.0001659,2]
[350786425,1738128643693,-500.0,0.0001659,2]
[350786427,1738128643703,-151.0,0.0001659,2]
[350786429,1738128643714,-151.0,0.0001659,2]
[350786431,1738128643723,-151.0,0.0001659,2]
[350786448,1738128643891,-151.0,0.0001659,2]
[350786450,1738128643901,-215.641366,0.0001659,2]
[350786452,1738128643912,-500.0,0.0001659,2]
[350786454,1738128643922,-500.0,0.0001659,2]
[350786456,1738128643932,-500.0,0.0001659,2]
[350786458,1738128643941,-500.0,0.0001659,2]
[350786460,1738128643951,-500.0,0.0001659,2]
[350786462,1738128643961,-560.817626,0.0001659,2]
[350786464,1738128643970,-560.817626,0.0001659,2]
[350786466,1738128643981,-560.817626,0.0001659,2]
[350786468,1738128643991,-560.817626,0.0001659,2]
[350786470,1738128644002,-560.817626,0.0001659,2]
[350786472,1738128644020,-560.817626,0.0001659,2]
[350786474,1738128644030,-224.07859,0.0001659,2]
[350786476,1738128644050,-151.0,0.0001659,2]
[350786478,1738128644062,-151.0,0.0001659,2]
[350786480,1738128644072,-151.0,0.0001659,2]
[350786482,1738128644083,-244.05503,0.0001659,2]
[350786484,1738128644092,-244.05503,0.0001659,2]
[350786486,1738128644102,-244.05503,0.0001659,2]
[350786488,1738128644112,-244.05503,0.0001659,2]
[350786490,1738128644122,-244.05503,0.0001659,2]
[350786492,1738128644132,-244.05503,0.0001659,2]
[350786494,1738128644141,-193.11102,0.00016591,2]
[350786496,1738128644150,-500.0,0.00016591,2]
[350786498,1738128644160,-500.0,0.00016591,2]
[350786500,1738128644170,-500.0,0.00016591,2]
[350786502,1738128644179,-500.0,0.00016591,2]
[350786503,1738128644188,-500.0,0.00016591,2]
[350786506,1738128644198,-500.0,0.00016591,2]
[350786508,1738128644209,-321.766729,0.00016591,2]
[350786509,1738128644218,-321.766729,0.00016591,2]
[350786511,1738128644228,-505.98645182,0.00016591,2]
[350786513,1738128644237,-321.766729,0.00016591,2]
[350786515,1738128644247,-321.766729,0.00016591,2]
[350786517,1738128644256,-383.94639281,0.00016591,2]
[350786520,1738128644268,-500.0,0.00016591,2]
[350786522,1738128644279,-181.696667,0.00016591,2]
[350786524,1738128644289,-181.696667,0.00016591,2]
[350786526,1738128644300,-181.696667,0.00016591,2]
[350786528,1738128644309,-181.696667,0.00016591,2]
[350786530,1738128644319,-500.0,0.00016591,2]
[350786532,1738128644329,-184.038694,0.00016591,2]
[350786534,1738128644339,-184.038694,0.00016591,2]
[350786536,1738128644349,-151.0,0.00016591,2]
[350786538,1738128644359,-151.0,0.00016591,2]
[350786540,1738128644369,-315.928097,0.00016591,2]
[350786542,1738128644379,-315.928095,0.00016591,2]
[350786544,1738128644389,-487.447635,0.00016591,2]
[350786546,1738128644399,-572.18314445,0.00016591,2]
[350786548,1738128644409,-487.447631,0.00016591,2]
[350786550,1738128644418,-560.817626,0.00016591,2]
[350786552,1738128644428,-560.817628,0.00016591,2]
[350786554,1738128644438,-151.0,0.00016591,2]
[350786556,1738128644447,-244.05503,0.00016591,2]
[350786558,1738128644457,-244.055032,0.00016591,2]
[350786560,1738128644467,-500.0,0.00016592,2]
[350786562,1738128644477,-321.766729,0.00016592,2]
[350786564,1738128644487,-321.766729,0.00016592,2]
[350786565,1738128644496,-321.766729,0.00016592,2]
[350786567,1738128644506,-321.766729,0.00016592,2]
[350786568,1738128644517,-181.696667,0.00016592,2]
[350786569,1738128644527,-181.696667,0.00016592,2]
[350786570,1738128644537,-181.696667,0.00016592,2]
[350786571,1738128644547,-181.696667,0.00016592,2]
[350786572,1738128644557,-184.038694,0.00016592,2]
[350786573,1738128644567,-184.03869,0.00016592,2]
[350786574,1738128644576,-151.0,0.00016592,2]
[350786575,1738128644585,-151.0,0.00016592,2]
[350786576,1738128644595,-151.0,0.00016592,2]
[350786577,1738128644606,-500.0,0.00016725,2]
[350786578,1738128644616,-1051.47,0.00016725,2]
[350786579,1738128644626,-500.0,0.00016725,2]
[350786580,1738128644636,-578.48,0.00016725,2]
[350786581,1738128644645,-1260.16,0.00016725,2]
[350786582,1738128644655,-500.0,0.00016725,2]
[350786583,1738128644664,-551.19,0.00016726,2]
[350786584,1738128644674,-3321.61,0.00016726,2]
[350786585,1738128644683,-1384.22,0.00016726,2]
[350786586,1738128644693,-1031.53,0.00016726,2]
[350786587,1738128644703,-500.0,0.00016726,2]
[350786588,1738128644713,-500.0,0.00016726,2]
[350786590,1738128644723,-500.0,0.00016726,2]
[350786592,1738128644732,-790.64,0.00016726,2]
[350786594,1738128644742,-500.0,0.00016726,2]
[350786596,1738128644751,-801.9,0.00016726,2]
[350786598,1738128644761,-1453.76,0.00016726,2]
[350786600,1738128644771,-500.0,0.00016726,2]
[350786602,1738128644780,-1322.58,0.00016726,2]
[350786604,1738128644789,-645.2,0.00016726,2]
[350786606,1738128644799,-530.73,0.00016726,2]
[350786608,1738128644809,-1445.07,0.00016726,2]
[350786610,1738128644819,-500.0,0.00016726,2]
[350786612,1738128644829,-500.0,0.00016726,2]
[350786614,1738128644838,-500.0,0.00016726,2]
[350786616,1738128644848,-1662.89,0.00016726,2]
[350786618,1738128644861,-500.0,0.00016726,2]
[350786620,1738128644870,-500.0,0.00016726,2]
[350786622,1738128644881,-500.0,0.00016726,2]
[350786624,1738128644891,-515.40166202,0.00016727,2]
[350786626,1738128644901,-500.0,0.00016727,2]
[350786628,1738128644911,-321.766729,0.00016727,2]
[350786630,1738128644921,-321.766725,0.00016727,2]
[350786632,1738128644932,-500.0,0.00016727,2]
[350786634,1738128644942,-500.0,0.00016727,2]
[350786636,1738128644952,-181.696667,0.00016727,2]
[350786638,1738128644962,-500.0,0.00016727,2]
[350786640,1738128644972,-181.696675,0.00016727,2]
[350786642,1738128644982,-500.0,0.00016727,2]
[350786644,1738128644992,-500.0,0.00016727,2]
[350786646,1738128645002,-500.0,0.00016727,2]
[350786648,1738128645013,-500.0,0.00016727,2]
[350786650,1738128645024,-430.38540521,0.00016727,2]
[350786652,1738128645034,-500.0,0.00016727,2]
[350786654,1738128645045,-500.0,0.00016727,2]
[350786656,1738128645056,-500.0,0.00016727,2]
[350786658,1738128645066,-500.0,0.00016727,2]
[350786660,1738128645075,-500.0,0.00016727,2]
[350786662,1738128645085,-500.0,0.00016727,2]
[350786664,1738128645095,-325.36,0.00016727,2]
[350786666,1738128645105,-180.86597093,0.00016727,2]
[350786668,1738128645115,-500.0,0.00016727,2]
[350786670,1738128645125,-702.43,0.00016727,2]
[350786672,1738128645134,-500.0,0.00016727,2]
[350786674,1738128645145,-637.54598833,0.00016727,2]
[350786676,1738128645155,-500.0,0.00016727,2]
[350786678,1738128645164,-4458.44,0.00016727,2]
[350786680,1738128645174,-500.0,0.00016727,2]
[350786682,1738128645184,-500.0,0.00016727,2]
[350786684,1738128645193,-13457.57,0.00016727,2]
[350786686,1738128645202,-668.8,0.00016727,2]
[350786688,1738128645212,-327.23560935,0.00016727,2]
[350786690,1738128645222,-500.0,0.00016727,2]
[350786692,1738128645232,-500.0,0.00016727,2]
[350786694,1738128645242,-500.0,0.00016727,2]
[350786696,1738128645252,-482.30563152,0.00016727,2]
[350786698,1738128645264,-504.9480489,0.00016727,2]
[350786700,1738128645274,-567.6,0.00016727,2]
[350786702,1738128645283,-500.0,0.00016727,2]
[350786704,1738128645293,-500.0,0.00016727,2]
[350786706,1738128645303,-536.02,0.00016728,2]
[350786708,1738128645312,-298.25359222,0.00016728,2]
[350786710,1738128645323,-500.0,0.00016728,2]
[350786712,1738128645332,-500.0,0.00016728,2]
[350786714,1738128645342,-500.0,0.00016728,2]
[350786716,1738128645351,-500.0,0.00016728,2]
[350786718,1738128645361,-540.88,0.00016728,2]
[350786720,1738128645370,-500.0,0.00016728,2]
[350786722,1738128645379,-500.0,0.00016729,2]
[350786724,1738128645389,-500.0,0.00016844,2]
[350786726,1738128645399,-459.4795988,0.00016853,2]
[350786728,1738128645409,-500.0,0.00016862,2]
[350786730,1738128645419,-1051.47,0.00016862,2]
[350786732,1738128645428,-500.0,0.00016862,2]
[350786734,1738128645438,-578.48,0.00016862,2]
[350786736,1738128645447,-1260.16,0.00016862,2]
[350786738,1738128645457,-500.0,0.00016862,2]
[350786739,1738128645466,-3321.61,0.00016863,2]
[350786741,1738128645475,-1384.22,0.00016863,2]
[350786742,1738128645485,-1031.53,0.00016863,2]
[350786744,1738128645494,-500.0,0.00016863,2]
[350786746,1738128645504,-500.0,0.00016863,2]
[350786748,1738128645513,-500.0,0.00016863,2]
[350786750,1738128645524,-790.64,0.00016863,2]
[350786752,1738128645533,-500.0,0.00016863,2]
[350786754,1738128645543,-801.9,0.00016863,2]
[350786756,1738128645553,-1453.76,0.00016863,2]
[350786758,1738128645563,-500.0,0.00016863,2]
[350786760,1738128645572,-1322.58,0.00016863,2]
[350786762,1738128645582,-645.2,0.00016863,2]
[350786764,1738128645591,-530.73,0.00016863,2]
[350786766,1738128645601,-1445.07,0.00016863,2]
[350786768,1738128645611,-500.0,0.00016863,2]
[350786770,1738128645621,-500.0,0.00016863,2]
[350786772,1738128645630,-500.0,0.00016863,2]
[350786774,1738128645640,-1662.89,0.00016863,2]
[350786776,1738128645648,-613.38873494,0.00016863,2]
[350786778,1738128645658,-500.0,0.00016863,2]
[350786780,1738128645667,-500.0,0.00016864,2]
[350786782,1738128645676,-500.0,0.00016864,2]
[350786784,1738128645686,-500.0,0.00016864,2]
[350786786,1738128645695,-500.0,0.00016864,2]
[350786788,1738128645705,-493.46,0.00016864,2]
[350786790,1738128645714,-500.0,0.00016864,2]
[350786792,1738128645724,-500.0,0.00016864,2]
[350786794,1738128645734,-500.0,0.00016864,2]
[350786795,1738128645744,-500.0,0.00016864,2]
[350786797,1738128645753,-472.39813611,0.00016864,2]
[350786799,1738128645763,-318.25729526,0.00016864,2]
[350786801,1738128645772,-500.0,0.00016864,2]
[350786803,1738128645783,-500.0,0.00016864,2]
[350786805,1738128645794,-702.43,0.00016864,2]
[350786807,1738128645804,-500.0,0.00016864,2]
[350786809,1738128645814,-554.79110466,0.00016864,2]
[350786811,1738128645823,-4458.44,0.00016864,2]
[350786813,1738128645833,-500.0,0.00016864,2]
[350786815,1738128645842,-500.0,0.00016864,2]
[350786817,1738128645853,-13457.57,0.00016864,2]
[350786819,1738128645864,-668.8,0.00016864,2]
[350786821,1738128645874,-500.0,0.00016864,2]
[350786823,1738128645884,-500.0,0.00016864,2]
[350786825,1738128645895,-500.0,0.00016864,2]
[350786827,1738128645904,-500.0,0.00016864,2]
[350786829,1738128645914,-500.0,0.00016864,2]
[350786831,1738128645923,-500.0,0.00016865,2]
[350786833,1738128645934,-500.0,0.00016865,2]
[350786835,1738128645944,-500.0,0.00016865,2]
[350786837,1738128645953,-500.0,0.00016865,2]
[350786839,1738128645963,-500.0,0.00016866,2]
[350786841,1738128645973,-164.78351878,0.00016903,7]
[350786844,1738128645983,-153.0,0.00016959,2]
[350786845,1738128645993,-215.0894901,0.00016959,2]
[350786847,1738128646002,-153.0,0.00016959,2]
[350786849,1738128646012,-153.0,0.00016959,2]
[350786851,1738128646022,-449.8363382,0.00016959,2]
[350786853,1738128646031,-153.0,0.00016959,2]
[350786855,1738128646042,-153.0,0.00016959,2]
[350786857,1738128646051,-153.0,0.00016959,2]
[350786859,1738128646060,-153.0,0.00016959,2]
[350786861,1738128646070,-154.0656718,0.00016959,2]
[350786863,1738128646079,-354.285986,0.00016986,2]
[350786865,1738128646088,-354.285986,0.00016986,2]
[350786867,1738128646099,-712.6656599,0.00016986,2]
[350786869,1738128646108,-354.285986,0.00016986,2]
[350786871,1738128646118,-354.285986,0.00016986,2]
[350786873,1738128646128,-353.9547872,0.00016986,2]
[350786875,1738128646137,-164.6077969,0.00016986,2]
[350786877,1738128646146,-303.7280397,0.00016986,2]
[350786879,1738128646156,-154.3518878,0.00016986,2]
[350786882,1738128646165,-154.3518878,0.00016986,2]
[350786885,1738128646175,-500.0,0.00016999,2]
[350786888,1738128646184,-1051.47,0.00016999,2]
[350786891,1738128646194,-500.0,0.00016999,2]
[350786893,1738128646203,-578.48,0.00016999,2]
[350786895,1738128646212,-1260.16,0.00016999,2]
[350786897,1738128646222,-500.0,0.00016999,2]
[350786899,1738128646231,-3321.61,0.00017,2]
[350786900,1738128646240,-1384.22,0.00017,2]
[350786902,1738128646249,-1031.53,0.00017,2]
[350786904,1738128646259,-500.0,0.00017,2]
[350786906,1738128646269,-500.0,0.00017,2]
[350786908,1738128646278,-500.0,0.00017,2]
[350786910,1738128646288,-790.64,0.00017,2]
[350786912,1738128646298,-500.0,0.00017,2]